bitfinex-derivatives/quotes_BNBF0:USTF0_20250220
["timestamp","ask_amount","ask_price","bid_price","bid_amount"]
[1740038407576,0.28323097,649.33,648.1,0.30859435]
[1740038407782,0.30801453,649.32,648.1,0.30859435]
[1740038408180,0.5912455,649.32,648.1,0.30859435]
[1740038408381,0.28323097,649.31,648.1,0.30859435]
[1740038412791,0.30802402,649.3,648.1,0.30859435]
[1740038412990,0.28323097,649.29,648.1,0.30859435]
[1740038413183,0.30803351,649.28,648.1,0.30859435]
[1740038413386,0.28323097,649.27,648.1,0.30859435]
[1740038413690,0.308043,649.26,648.1,0.30859435]
[1740038413891,0.28325012,649.25,648.1,0.30859435]
[1740038414792,0.30805249,649.24,648.1,0.30859435]
[1740038414988,0.28325012,649.23,648.1,0.30859435]
[1740038415491,0.30806198,649.22,647.43,1.14803402]
[1740038415692,0.28325012,649.21,647.45,0.30890416]
[1740038416890,0.30807147,649.2,647.45,0.30890416]
[1740038417090,0.28325012,649.19,647.45,0.30890416]
[1740038417290,0.30808096,649.18,647.45,0.30890416]
[1740038417488,0.28325012,649.17,647.45,0.30890416]
[1740038417794,0.30809045,649.16,647.45,0.30890416]
[1740038418094,0.28325012,649.15,647.45,0.30890416]
[1740038418393,0.30809994,649.14,647.45,0.30890416]
[1740038418592,0.28325012,649.13,647.45,0.30890416]
[1740038418787,0.30810944,649.12,647.45,0.30890416]
[1740038418994,0.28325012,649.11,647.45,0.30890416]
[1740038419188,0.30811893,649.1,647.45,0.30890416]
[1740038419391,0.28325012,649.09,647.45,0.30890416]
[1740038420493,0.30812842,649.08,647.45,0.30890416]
[1740038420894,0.28335423,649.07,647.45,0.30890416]
[1740038421194,0.30813792,649.06,647.45,0.30890416]
[1740038421395,0.28335423,649.05,647.45,0.30890416]
[1740038421590,0.30814741,649.04,647.45,0.30890416]
[1740038421794,0.28335423,649.03,647.45,0.30890416]
[1740038421994,0.30815691,649.02,647.45,0.30890416]
[1740038422192,0.28335423,649.01,647.45,0.30890416]
[1740038422394,0.3081664,649.0,647.45,0.30890416]
[1740038422591,0.28335423,648.99,647.45,0.30890416]
[1740038422800,0.59152538,648.99,647.45,0.30890416]
[1740038422997,0.28335423,648.98,647.45,0.30890416]
[1740038423394,0.30817115,648.99,647.45,0.30890416]
[1740038423591,0.28336186,648.98,647.45,0.30890416]
[1740038423795,0.30818065,648.97,647.45,0.30890416]
[1740038423998,0.28336186,648.96,647.45,0.30890416]
[1740038424200,0.30818065,648.97,647.45,0.30890416]
[1740038424499,0.28337496,648.96,647.45,0.30890416]
[1740038425499,0.30819015,648.95,647.45,0.30890416]
[1740038425693,0.28337496,648.94,647.45,0.30890416]
[1740038425894,0.30819965,648.93,647.45,0.30890416]
[1740038426093,0.28337496,648.92,647.45,0.30890416]
[1740038426794,0.30820915,648.91,647.45,0.30890416]
[1740038426994,0.28337496,648.9,647.45,0.30890416]
[1740038427190,0.30821865,648.89,647.45,0.30890416]
[1740038427398,0.28337496,648.88,647.45,0.30890416]
[1740038427592,0.3082329,648.86,647.45,0.30890416]
[1740038427795,0.28337496,648.85,647.45,0.30890416]
[1740038428000,0.30824715,648.83,647.45,0.30890416]
[1740038428197,0.28337496,648.82,647.45,0.30890416]
[1740038428397,0.3082614,648.8,647.45,0.30890416]
[1740038428597,0.28337496,648.79,647.45,0.30890416]
[1740038428796,0.30827566,648.77,647.45,0.30890416]
[1740038428997,0.28337496,648.76,647.45,0.30890416]
[1740038429193,0.30828516,648.75,647.45,0.30890416]
[1740038429393,0.28337496,648.74,647.45,0.30890416]
[1740038429598,0.30829466,648.73,647.45,0.30890416]
[1740038429793,0.28337496,648.72,647.45,0.30890416]
[1740038429993,0.30830417,648.71,647.45,0.30890416]
[1740038430197,0.28337496,648.7,647.45,0.30890416]
[1740038430397,0.30831843,648.68,647.45,0.30890416]
[1740038430596,0.28337496,648.67,647.45,0.30890416]
[1740038430794,0.59170289,648.66,647.45,0.30890416]
[1740038430997,0.59170765,648.65,647.45,0.30890416]
[1740038431199,0.30833269,648.65,647.45,0.30890416]
[1740038431400,0.28352672,648.64,647.45,0.30890416]
[1740038431700,0.59186891,648.63,647.45,0.30890416]
[1740038431894,0.28352672,648.62,647.45,0.30890416]
[1740038432099,0.28352672,648.61,647.45,0.30890416]
[1740038432300,0.28352672,648.62,647.45,0.30890416]
[1740038432599,0.59187842,648.61,647.45,0.30890416]
[1740038432801,0.59188318,648.6,647.45,0.30890416]
[1740038433000,0.28352672,648.59,647.45,0.30890416]
[1740038433199,0.28352672,648.58,647.45,0.30890416]
[1740038433403,0.28352672,648.59,647.45,0.30890416]
[1740038433703,0.28352672,648.58,647.45,0.30890416]
[1740038433900,0.28352672,648.59,647.45,0.30890416]
[1740038434101,0.28352672,648.58,647.45,0.30890416]
[1740038434400,0.28352672,648.57,647.45,0.30890416]
[1740038434600,0.28352672,648.59,647.45,0.30890416]
[1740038434803,0.28352672,648.56,647.45,0.30890416]
[1740038435000,0.28352672,648.55,647.45,0.30890416]
[1740038435202,0.30838498,648.54,647.45,0.30890416]
[1740038435501,0.28352672,648.53,647.45,0.30890416]
[1740038435700,0.59192121,648.52,647.45,0.30890416]
[1740038435901,0.59192597,648.51,647.45,0.30890416]
[1740038436097,0.28352672,648.5,647.45,0.30890416]
[1740038436403,0.30839925,648.51,647.45,0.30890416]
[1740038436404,0.59193548,648.49,647.45,0.30890416]
[1740038436602,0.59194024,648.48,647.45,0.30890416]
[1740038436801,0.59194499,648.47,647.45,0.30890416]
[1740038437002,0.28352672,648.46,647.45,0.30890416]
[1740038437403,0.28352672,648.45,647.45,0.30890416]
[1740038437604,0.28352672,648.44,647.45,0.30890416]
[1740038437902,0.28352672,648.43,647.45,0.30890416]
[1740038438096,0.28352672,648.42,647.45,0.30890416]
[1740038438299,0.28352672,648.41,647.45,0.30890416]
[1740038438499,0.28352672,648.4,647.45,0.30890416]
[1740038438803,0.28352672,648.39,647.45,0.30890416]
[1740038438999,0.30841827,648.47,647.45,0.30890416]
[1740038439204,0.28353379,648.46,647.45,0.30890416]
[1740038440002,0.30841827,648.47,647.45,0.30890416]
[1740038440304,0.28354267,648.46,647.45,0.30890416]
[1740038445007,0.30841827,648.47,647.45,0.30890416]
[1740038445211,0.28354885,648.46,647.45,0.30890416]
[1740038447001,0.30841827,648.47,647.45,0.30890416]
[1740038447206,0.28354564,648.46,647.45,0.30890416]
[1740038450508,0.30841827,648.47,647.45,0.30890416]
[1740038450708,0.28355029,648.46,647.45,0.30890416]
[1740038458513,0.30841827,648.47,647.45,0.30890416]
[1740038475729,0.30841827,648.47,647.46,1.61049599]
[1740038478636,0.75916655,649.54,647.46,1.61049599]
[1740038478838,0.30795762,649.44,647.46,1.61049599]
[1740038479037,0.28330797,649.43,647.47,0.30889462]
[1740038479234,0.28330797,649.42,647.47,0.30889462]
[1740038479436,0.28330797,649.41,647.47,0.30889462]
[1740038479632,0.28330797,649.4,647.47,0.30889462]
[1740038479837,0.30798607,649.38,647.47,0.30889462]
[1740038480036,0.28330797,649.37,647.47,0.30889462]
[1740038480233,0.3080003,649.35,647.47,0.30889462]
[1740038480440,0.28330797,649.34,647.47,0.30889462]
[1740038480639,0.30801453,649.32,647.47,0.30889462]
[1740038480934,0.28330797,649.31,647.47,0.30889462]
[1740038481139,0.28330797,649.3,647.47,0.30889462]
[1740038481340,0.28330797,649.29,647.47,0.30889462]
[1740038481535,0.28330797,649.28,647.47,0.30889462]
[1740038481841,0.28330797,649.27,647.47,0.30889462]
[1740038482038,0.28330797,649.26,647.47,0.30889462]
[1740038482239,0.28330797,649.25,647.47,0.30889462]
[1740038482435,0.28330797,649.24,647.47,0.30889462]
[1740038482634,0.28330797,649.23,647.47,0.30889462]
[1740038482835,0.28330797,649.22,647.47,0.30889462]
[1740038483041,0.28330797,649.21,647.47,0.30889462]
[1740038483241,0.28330797,649.31,647.47,0.30889462]
[1740038483936,0.28329291,649.3,647.47,0.30889462]
[1740038484138,0.28329291,649.29,647.47,0.30889462]
[1740038484337,0.28329291,649.31,647.47,0.30889462]
[1740038484542,0.28329291,649.3,647.47,0.30889462]
[1740038484739,0.30803351,649.28,647.47,0.30889462]
[1740038484943,0.28329291,649.27,647.47,0.30889462]
[1740038485444,0.30803351,649.28,647.47,0.30889462]
[1740038485645,0.2833062,649.27,647.47,0.30889462]
[1740038485839,0.30804774,649.25,647.47,0.30889462]
[1740038486042,0.2833062,649.24,647.47,0.30889462]
[1740038486243,0.30806198,649.22,647.47,0.30889462]
[1740038486542,0.2833062,649.21,647.47,0.30889462]
[1740038488746,0.30807621,649.19,647.47,0.30889462]
[1740038489143,0.28330226,649.18,647.47,0.30889462]
[1740038490546,0.30809045,649.16,647.47,0.30889462]
[1740038490747,0.28330226,649.15,647.47,0.30889462]
[1740038490941,0.30810469,649.13,647.47,0.30889462]
[1740038491144,0.28330226,649.12,647.47,0.30889462]
[1740038491347,0.30811893,649.1,647.47,0.30889462]
[1740038491544,0.28330226,649.09,647.47,0.30889462]
[1740038492449,0.28330191,649.08,647.47,0.30889462]
[1740038492647,0.30813792,649.06,647.47,0.30889462]
[1740038492848,0.28330191,649.05,647.47,0.30889462]
[1740038493049,0.30815216,649.03,647.47,0.30889462]
[1740038493249,0.28330191,649.02,647.47,0.30889462]
[1740038494152,0.28330107,649.01,647.47,0.30889462]
[1740038494354,0.28330107,649.02,647.47,0.30889462]
[1740038494549,0.28330107,649.01,647.47,0.30889462]
[1740038494748,0.28330107,649.02,647.47,0.30889462]
[1740038494951,0.28330107,649.01,647.47,0.30889462]
[1740038495156,0.28330107,649.02,647.47,0.30889462]
[1740038495454,0.28330107,649.01,647.47,0.30889462]
[1740038495649,0.28330107,649.02,647.47,0.30889462]
[1740038495852,0.28329665,649.01,647.47,0.30889462]
[1740038496052,0.28329665,649.02,647.47,0.30889462]
[1740038496250,0.3081664,649.0,647.47,0.30889462]
[1740038496454,0.28329665,648.99,647.47,0.30889462]
[1740038496655,0.3081759,648.98,647.47,0.30889462]
[1740038496856,0.28329665,648.97,647.47,0.30889462]
[1740038497253,0.3081854,648.96,647.47,0.30889462]
[1740038497451,0.28329665,648.95,647.47,0.30889462]
[1740038497650,0.3081949,648.94,647.47,0.30889462]
[1740038498557,0.3081949,648.94,647.53,1.14803402]
[1740038498750,0.3081949,648.94,647.54,0.30886122]
[1740038501155,0.3081949,648.94,647.6,1.14803402]
[1740038501352,0.3081949,648.94,647.61,0.30882784]
[1740038503955,0.3081949,648.94,647.61,1.45686186]
[1740038506661,0.3081949,648.94,647.61,0.30882784]
[1740038508762,0.3081949,648.94,647.63,1.14803402]
[1740038508959,0.3081949,648.94,647.64,0.30881353]
[1740038510961,0.3081949,648.94,647.65,1.14803402]
[1740038511465,0.3081949,648.94,647.66,0.308804]
[1740038513465,0.3081949,648.94,647.67,1.14803402]
[1740038513667,0.3081949,648.94,647.68,0.30879446]
[1740038515567,0.3081949,648.94,647.73,1.14803402]
[1740038515763,0.3081949,648.94,647.74,0.30876586]
[1740038519568,0.3081949,648.94,647.79,1.14803402]
[1740038522470,0.3081949,648.94,647.74,0.30876586]
[1740038533487,0.3081949,648.94,647.82,1.14803402]
[1740038536088,0.3081949,648.94,647.81,1.14803402]
[1740038538090,0.3081949,648.94,647.74,0.30876586]
[1740038544395,0.3081949,648.94,647.74,1.45679988]
[1740038549290,0.3081949,648.94,647.84,1.14803402]
[1740038551499,0.3081949,648.94,647.83,1.14803402]
[1740038553401,0.3081949,648.94,647.86,1.14803402]
[1740038555701,0.3081949,648.94,647.84,1.14803402]
[1740038555896,0.3081949,648.94,647.85,0.30871343]
[1740038557202,0.3081949,648.94,647.96,1.14803402]
[1740038559398,0.3081949,648.94,647.94,1.14803402]
[1740038561000,0.3081949,648.94,647.89,1.14803402]
[1740038561404,0.3081949,648.94,647.9,0.30868961]
[1740038567007,1.15329695,649.91,647.9,0.30868961]
[1740038567206,0.30778227,649.81,647.9,0.30868961]
[1740038567402,0.28310183,649.8,647.9,0.30868961]
[1740038567609,0.28310183,649.79,647.9,0.30868961]
[1740038567809,0.28310183,649.78,647.9,0.30868961]
[1740038568010,0.28310183,649.8,647.9,0.30868961]
[1740038568310,0.28310183,649.79,647.9,0.30868961]
[1740038568608,0.28310183,649.78,647.9,0.30868961]
[1740038568804,0.30780595,649.76,647.9,0.30868961]
[1740038569112,0.28310183,649.75,647.9,0.30868961]
[1740038569411,0.30782017,649.73,647.9,0.30868961]
[1740038569606,0.28310183,649.72,647.9,0.30868961]
[1740038569807,0.30783438,649.7,647.9,0.30868961]
[1740038570008,0.28310183,649.69,647.9,0.30868961]
[1740038570510,0.3078486,649.67,647.9,0.30868961]
[1740038570810,0.28310183,649.66,647.9,0.30868961]
[1740038571210,0.30786281,649.64,647.9,0.30868961]
[1740038571411,0.28310183,649.63,647.9,0.30868961]
[1740038571708,0.30787703,649.61,647.9,0.30868961]
[1740038572007,0.28310183,649.6,647.9,0.30868961]
[1740038573514,0.28313497,649.59,647.9,0.30868961]
[1740038573713,0.30789599,649.57,647.9,0.30868961]
[1740038573905,0.28313497,649.56,647.9,0.30868961]
[1740038574707,0.30791021,649.54,647.9,0.30868961]
[1740038574912,0.28313497,649.53,647.9,0.30868961]
[1740038576313,0.30792443,649.51,647.9,0.30868961]
[1740038576508,0.28313497,649.5,647.9,0.30868961]
[1740038576707,0.30793865,649.48,647.9,0.30868961]
[1740038576915,0.28313497,649.47,647.9,0.30868961]
[1740038577110,0.30795288,649.45,647.9,0.30868961]
[1740038577309,0.28313497,649.44,647.9,0.30868961]
[1740038577515,0.3079671,649.42,647.9,0.30868961]
[1740038578017,0.28313184,649.41,647.9,0.30868961]
[1740038578209,0.30798133,649.39,647.9,0.30868961]
[1740038582014,0.28316351,649.38,647.9,0.30868961]
[1740038582718,0.30798133,649.39,647.9,0.30868961]
[1740038582919,0.28316236,649.38,647.9,0.30868961]
[1740038583115,0.30799556,649.36,647.9,0.30868961]
[1740038584519,0.28317712,649.35,647.9,0.30868961]
[1740038585221,0.30800979,649.33,647.9,0.30868961]
[1740038586618,0.28322352,649.32,647.9,0.30868961]
[1740038587720,0.30800979,649.33,647.9,0.30868961]
[1740038587921,0.28323822,649.32,647.9,0.30868961]
[1740038588419,0.30802402,649.3,647.9,0.30868961]
[1740038588620,0.28323822,649.29,647.9,0.30868961]
[1740038588816,0.30803825,649.27,647.9,0.30868961]
[1740038589320,0.28324511,649.26,647.9,0.30868961]
[1740038589719,0.30805249,649.24,647.9,0.30868961]
[1740038591920,0.2832494,649.23,647.9,0.30868961]
[1740038592124,0.30806672,649.21,647.9,0.30868961]
[1740038596127,0.28323637,649.2,647.9,0.30868961]
[1740038596326,0.30808096,649.18,647.9,0.30868961]
[1740038596528,0.28323637,649.17,647.9,0.30868961]
[1740038596729,0.3080952,649.15,647.9,0.30868961]
[1740038596926,0.28326461,649.14,647.9,0.30868961]
[1740038597123,0.30810944,649.12,647.9,0.30868961]
[1740038597328,0.28326461,649.11,647.9,0.30868961]
[1740038597529,0.30811893,649.1,647.9,0.30868961]
[1740038597829,0.28326461,649.09,647.9,0.30868961]
[1740038598129,0.30812842,649.08,647.86,1.60932297]
[1740038598328,0.28326461,649.07,647.86,1.60932297]
[1740038598729,0.30814267,649.05,647.86,1.60932297]
[1740038598927,0.28326461,649.04,647.86,1.60932297]
[1740038599131,0.30815691,649.02,647.86,1.60932297]
[1740038599323,0.28326461,649.01,647.86,1.60932297]
[1740038599524,0.3081664,649.0,647.44,1.14803402]
[1740038599730,0.3081664,649.0,647.78,1.61037178]
[1740038600127,0.3081664,649.0,647.42,1.14803402]
[1740038600326,0.3081664,649.0,647.78,1.6100303]
[1740038600525,0.3081664,649.0,647.42,1.14803402]
[1740038601530,0.3081664,649.0,647.43,1.61035315]
[1740038608639,0.28336135,648.99,647.43,1.61035315]
[1740038608832,0.30818065,648.97,647.43,1.61035315]
[1740038609038,0.28336135,648.96,647.43,1.61035315]
[1740038610143,0.3081949,648.94,647.43,1.61035315]
[1740038610540,0.28338163,648.93,647.43,1.61035315]
[1740038610743,0.30820915,648.91,647.43,1.61035315]
[1740038610944,0.28338163,648.9,647.43,1.61035315]
[1740038611343,0.30821865,648.89,647.43,1.61035315]
[1740038611541,0.28338163,648.88,647.43,1.61035315]
[1740038611745,0.30822815,648.87,647.43,1.61035315]
[1740038612248,0.28337833,648.86,647.43,1.61035315]
[1740038612439,0.30823765,648.85,647.43,1.61035315]
[1740038612641,0.28337833,648.84,647.43,1.61035315]
[1740038612847,0.30824715,648.83,647.43,1.61035315]
[1740038613045,0.28337833,648.82,647.43,1.61035315]
[1740038613247,0.30825665,648.81,647.43,1.61035315]
[1740038615643,0.30825665,648.81,647.43,1.91926685]
[1740038616445,0.30825665,648.81,647.44,0.30890893]
[1740038618544,0.2833608,648.8,647.44,0.30890893]
[1740038618746,0.30826615,648.79,647.44,0.30890893]
[1740038625951,0.28343182,648.78,647.44,0.30890893]
[1740038626153,0.30828041,648.76,647.44,0.30890893]
[1740038626355,0.28343182,648.75,647.44,0.30890893]
[1740038626549,0.30828991,648.74,647.44,0.30890893]
[1740038631155,0.28341753,648.73,647.44,0.30890893]
[1740038631354,0.30829942,648.72,647.44,0.30890893]
[1740038631552,0.28341753,648.71,647.44,0.30890893]
[1740038631752,0.30830892,648.7,647.44,0.30890893]
[1740038632156,0.2834139,648.69,647.44,0.30890893]
[1740038632456,0.30831843,648.68,647.44,0.30890893]
[1740038651870,0.28344299,648.67,647.44,0.30890893]
[1740038652066,0.30833269,648.65,647.44,0.30890893]
[1740038652271,0.28344299,648.64,647.44,0.30890893]
[1740038652469,0.30834219,648.63,647.44,0.30890893]
[1740038652672,0.28344299,648.62,646.89,1.14803402]
[1740038652873,0.30835646,648.6,646.9,0.30916679]
[1740038653072,0.28344299,648.59,647.41,1.61128517]
[1740038653273,0.28344299,648.59,647.21,1.14803402]
[1740038653274,0.30837072,648.57,647.21,1.14803402]
[1740038653469,0.30837072,648.57,647.41,1.61132247]
[1740038653675,0.28344299,648.56,647.21,1.14803402]
[1740038653972,0.30838023,648.55,647.41,1.61132869]
[1740038654375,0.30838023,648.55,647.21,1.14803402]
[1740038654573,0.30838023,648.55,647.41,1.61134734]
[1740038654972,0.30838023,648.55,647.21,1.14803402]
[1740038655678,0.30838023,648.55,647.22,1.61123543]
[1740038655878,0.28349361,648.54,647.22,1.61123543]
[1740038656173,0.30838974,648.53,647.22,1.61123543]
[1740038681900,0.30838974,648.53,647.28,1.14803402]
[1740038684702,0.30838974,648.53,647.24,1.61111111]
[1740038701619,0.28350609,648.52,647.24,1.61111111]
[1740038701822,0.30839925,648.51,647.24,1.61111111]
[1740038702524,0.28350841,648.5,647.24,1.61111111]
[1740038702724,0.30840876,648.49,647.24,1.61111111]
[1740038704424,0.28348743,648.48,647.24,1.61111111]
[1740038705124,0.30841827,648.47,647.24,1.61111111]
[1740038705923,0.30841827,648.47,647.25,1.14803402]
[1740038708021,0.30841827,648.47,647.35,1.14803402]
[1740038710827,0.30841827,648.47,647.32,1.14803402]
[1740038714129,0.30841827,648.47,647.29,1.14803402]
[1740038717827,0.30841827,648.47,647.28,2.75904569]
[1740038719521,0.30841827,648.47,647.28,1.61101167]
[1740038730335,0.30841827,648.47,647.28,1.91999696]
[1740038750566,0.30841827,648.47,647.28,1.61101167]
[1740038756469,0.28354203,648.46,647.28,1.61101167]
[1740038756663,0.30842778,648.45,647.28,1.61101167]
[1740038757871,0.28353785,648.44,647.28,1.61101167]
[1740038758071,0.3084373,648.43,647.28,1.61101167]
[1740038758572,0.28354004,648.42,647.28,1.61101167]
[1740038758770,0.30844681,648.41,647.28,1.61101167]
[1740038761066,0.30844681,648.41,646.79,1.14803402]
[1740038761272,0.30844681,648.41,647.2,1.61142817]
[1740038761773,0.30844681,648.41,646.79,1.14803402]
[1740038761975,0.30844681,648.41,647.2,1.61145927]
[1740038762176,0.30844681,648.41,646.8,0.30921459]
[1740038762375,0.30844681,648.41,647.2,1.61137221]
[1740038762376,0.28358264,648.4,647.2,1.61137221]
[1740038762568,0.30844681,648.41,647.2,1.61137221]
[1740038762773,0.30043945,648.41,646.8,0.30921459]
[1740038762969,0.283582,648.4,647.2,1.61178269]
[1740038763176,0.30845633,648.39,646.8,0.30921459]
[1740038763375,0.283582,648.38,647.2,1.61180135]
[1740038763575,0.30846584,648.37,647.2,1.61180135]
[1740038763776,0.30846584,648.37,646.8,0.30921459]
[1740038763977,0.30846584,648.37,647.2,1.61179513]
[1740038764280,0.30846584,648.37,646.8,0.30921459]
[1740038764476,0.30846584,648.37,647.2,1.61140952]
[1740038764675,0.28358438,648.36,646.8,0.30921459]
[1740038765375,0.30846584,648.37,646.8,0.30921459]
[1740038765574,0.28357531,648.36,646.81,1.61226184]
[1740038765771,0.28357531,648.36,646.82,0.30920503]
[1740038766369,0.30847536,648.35,646.82,0.30920503]
[1740038766577,0.28357531,648.34,646.82,0.30920503]
[1740038766777,0.30848487,648.33,646.82,0.30920503]
[1740038766978,0.28357531,648.32,646.82,0.30920503]
[1740038767180,0.30849439,648.31,646.82,0.30920503]
[1740038770776,0.28359384,648.3,646.82,0.30920503]
[1740038770979,0.30850391,648.29,646.82,0.30920503]
[1740038771382,0.28359285,648.28,646.82,0.30920503]
[1740038771582,0.30851342,648.27,646.82,0.30920503]
[1740038772083,0.28360869,648.26,646.82,0.30920503]
[1740038772382,0.30852294,648.25,646.82,0.30920503]
[1740038772584,0.28373339,648.24,646.82,0.30920503]
[1740038772979,0.30853722,648.22,646.82,0.30920503]
[1740038773285,0.28373339,648.21,646.82,0.30920503]
[1740038773584,0.3085515,648.19,646.82,0.30920503]
[1740038773779,0.28373339,648.18,646.82,0.30920503]
[1740038773981,0.28373339,648.18,646.81,1.61226184]
[1740038773982,0.30856578,648.16,646.81,1.61226184]
[1740038774179,0.28373339,648.15,646.81,1.61226184]
[1740038774684,0.30858006,648.13,646.81,1.61226184]
[1740038774887,0.28373339,648.12,646.81,1.61226184]
[1740038775291,0.30859435,648.1,646.81,1.61226184]
[1740038775582,0.28373339,648.09,646.81,1.61226184]
[1740038775787,0.30860863,648.07,646.81,1.61226184]
[1740038775989,0.28373339,648.06,646.81,1.61226184]
[1740038776190,0.30862292,648.04,646.81,1.61226184]
[1740038776389,0.28373339,648.03,646.81,1.61226184]
[1740038777184,0.30863721,648.01,646.81,1.61226184]
[1740038777391,0.28376391,648.0,646.81,1.61226184]
[1740038777589,0.3086515,647.98,646.81,1.61226184]
[1740038777789,0.28376738,647.97,645.88,1.14803402]
[1740038777990,0.30866579,647.95,645.9,0.30964545]
[1740038778188,0.28376738,647.94,646.73,1.61291568]
[1740038778386,0.30868008,647.92,645.9,0.30964545]
[1740038778585,0.28376738,647.91,646.71,1.6130216]
[1740038778885,0.30869437,647.89,645.9,0.30964545]
[1740038779091,0.30869437,647.89,646.71,1.61301537]
[1740038779484,0.30869437,647.89,645.9,0.30964545]
[1740038779683,0.30869437,647.89,646.71,1.61244237]
[1740038779890,0.2837837,647.88,645.9,0.30964545]
[1740038780086,0.3087039,647.87,645.9,0.30964545]
[1740038780786,0.3087039,647.87,645.91,1.61354512]
[1740038780989,0.3087039,647.87,645.93,0.30963107]
[1740038781586,0.28377345,647.86,645.93,0.30963107]
[1740038781785,0.30871343,647.85,645.93,0.30963107]
[1740038786490,0.28375138,647.84,645.93,0.30963107]
[1740038786888,0.30872296,647.83,645.93,0.30963107]
[1740038787093,0.28375138,647.82,645.93,0.30963107]
[1740038787286,0.30873249,647.81,645.93,0.30963107]
[1740038793698,0.2837842,647.8,645.93,0.30963107]
[1740038794198,0.30873249,647.81,645.93,0.30963107]
[1740038794398,0.28378685,647.8,645.93,0.30963107]
[1740038795793,0.30873249,647.81,645.93,0.30963107]
[1740038797499,0.28376357,647.8,645.93,0.30963107]
[1740038797706,0.30874203,647.79,645.93,0.30963107]
[1740038799100,0.30874203,647.79,646.05,1.14803402]
[1740038799302,0.30874203,647.79,646.07,0.30956397]
[1740038800000,0.30874203,647.79,646.07,0.30254836]
[1740038807715,0.30874203,647.79,646.32,1.14803402]
[1740038807916,0.30874203,647.79,646.33,0.30943945]
[1740038810214,0.30874203,647.79,646.48,1.14803402]
[1740038810415,0.30874203,647.79,646.49,0.30936286]
[1740038831535,1.15329695,648.67,646.49,0.30936286]
[1740038831735,0.30837072,648.57,646.49,0.30936286]
[1740038835937,0.28367721,648.56,646.49,0.30936286]
[1740038836137,0.30842303,648.46,646.49,0.30936286]
[1740038836437,0.28367721,648.45,646.49,0.30936286]
[1740038837334,0.28367721,648.44,646.49,0.30936286]
[1740038837537,0.28367721,648.43,646.49,0.30936286]
[1740038837739,0.28367721,648.42,646.49,0.30936286]
[1740038838038,0.28367721,648.41,646.49,0.30936286]
[1740038838233,0.28367721,648.4,646.49,0.30936286]
[1740038838432,0.28367721,648.39,646.49,0.30936286]
[1740038838632,0.28367721,648.45,646.49,0.30936286]
[1740038838832,0.28367721,648.44,646.49,0.30936286]
[1740038839036,0.28367721,648.43,646.49,0.30936286]
[1740038839238,0.28367721,648.42,646.49,0.30936286]
[1740038839537,0.28367721,648.41,646.49,0.30936286]
[1740038839737,0.28367721,648.4,646.49,0.30936286]
[1740038839938,0.28367721,648.39,646.49,0.30936286]
[1740038840139,0.28367721,648.38,646.49,0.30936286]
[1740038840440,0.28367721,648.37,646.49,0.30936286]
[1740038840638,0.28367721,648.36,646.49,0.30936286]
[1740038840839,0.28367721,648.35,646.49,0.30936286]
[1740038841034,0.28367721,648.34,646.49,0.30936286]
[1740038841235,0.28367721,648.33,646.49,0.30936286]
[1740038841434,0.30849439,648.31,646.49,0.30936286]
[1740038841740,0.28367721,648.3,646.49,0.30936286]
[1740038841940,0.30850866,648.28,646.49,0.30936286]
[1740038842139,0.28373555,648.27,646.49,0.30936286]
[1740038842340,0.30852294,648.25,646.49,0.30936286]
[1740038842540,0.28373555,648.24,646.49,0.30936286]
[1740038842940,0.28373555,648.23,646.49,0.30936286]
[1740038843142,0.28373555,648.22,646.49,0.30936286]
[1740038843335,0.28373555,648.21,646.49,0.30936286]
[1740038843641,0.3085515,648.19,646.49,0.30936286]
[1740038843841,0.28373555,648.18,646.49,0.30936286]
[1740038844246,0.30856578,648.16,646.49,0.30936286]
[1740038844434,0.28373555,648.15,646.49,0.30936286]
[1740038844635,0.30858006,648.13,646.49,0.30936286]
[1740038844834,0.28373555,648.12,646.49,0.30936286]
[1740038845037,0.30859435,648.1,646.49,0.30936286]
[1740038845541,0.28374044,648.09,646.49,0.30936286]
[1740038845837,0.30860863,648.07,646.49,0.30936286]
[1740038846037,0.28374044,648.06,646.49,0.30936286]
[1740038846242,0.30862292,648.04,646.49,0.30936286]
[1740038846539,0.28374044,648.03,646.49,0.30936286]
[1740038846740,0.30863721,648.01,646.49,0.30936286]
[1740038846940,0.28374044,648.0,646.49,0.30936286]
[1740038847141,0.30863721,648.01,646.49,0.30936286]
[1740038847142,0.28375523,647.99,646.5,1.14803402]
[1740038847342,0.28375523,648.0,646.5,1.14803402]
[1740038847640,0.28375523,647.99,646.5,1.14803402]
[1740038847841,0.28375523,648.0,646.5,1.14803402]
[1740038848041,0.3086515,647.98,646.5,1.14803402]
[1740038848336,0.28375523,647.97,646.5,1.14803402]
[1740038848740,0.30866579,647.95,646.5,1.14803402]
[1740038848941,0.28377037,647.94,646.5,1.14803402]
[1740038849637,0.28377037,647.94,646.49,0.30936286]
[1740038849841,0.30867531,647.93,646.49,0.30936286]
[1740038850044,0.28377037,647.92,646.49,0.30936286]
[1740038850836,0.30868484,647.91,646.49,0.30936286]
[1740038851044,0.28377037,647.9,646.49,0.30936286]
[1740038851244,0.30869437,647.89,646.49,0.30936286]
[1740038851443,0.28377037,647.88,646.49,0.30936286]
[1740038851640,0.3087039,647.87,646.49,0.30936286]
[1740038862450,0.3087039,647.87,646.5,1.14803402]